{"text_format":"1","workbook":"xlsx","n_sheets":48,"sheets":["Инструкция","Лог обновления","Титульный","Территории","Дифференциация","Доступ к товарам и услугам","Публикация в других источниках","Сведения об изменении","Комментарии","Проверка","AllSheetsInThisWorkbook","TEHSHEET","modCheckCyan","modSettings","modfrmSetForPrint","modInfo","et_union_hor","et_union_vert","modList00","modList01","modList02","modList03","modList07","modList09","modHTTP","modfrmRegion","MR_LIST","REESTR_VT","REESTR_VED","modfrmReestrObj","DataOrg","modProv","modReestr","modfrmReestr","modUpdTemplMain","REESTR_ORG","modClassifierValidate","modHyp","modfrmDateChoose","modComm","modThisWorkbook","REESTR_MO","modfrmReestrMR","modServiceModule","modfrmCheckUpdates","REESTR_DS","REESTR_CHS","REESTR_LINK"],"not_rendered":{"charts":0,"images":22,"macros":1,"external_links":0,"defined_names":195,"comments":0,"pivot_tables":0},"unopened":[],"bounds":{"document_bytes":16777216,"sheet_cells":100000,"rows_first":2000,"rows_last":500,"rows_between":2000,"halvings":0,"cell_chars":16384,"cell_head_chars":4096},"cells_cut":0,"cells_raw":0,"read":"whole","date_system":"1900"}

{"sheet":"Инструкция","index":0,"n_rows":90,"n_cols":27,"rows_kept":90,"cut":false,"hidden":false,"merged":[[73,5,73,23],[74,4,74,23],[75,4,75,23],[76,4,76,23],[80,4,80,23],[81,4,81,23],[77,4,77,23],[82,4,82,23],[87,5,87,18],[89,5,89,23],[60,7,60,23],[85,4,85,23],[79,4,79,23],[69,4,69,23],[78,4,78,23],[70,4,70,23],[72,5,72,23],[58,7,58,23],[59,4,59,6],[71,5,71,23],[57,4,57,23],[21,15,21,23],[34,4,38,23],[39,4,39,23],[40,4,44,23],[45,4,56,23],[83,4,83,23],[22,15,22,22],[21,5,21,12],[1,1,1,6],[2,1,2,2],[4,1,4,24],[6,4,18,23],[20,5,20,12],[20,15,20,23],[58,4,58,6]]}
[null,null,null,null,null,null,null,null,null,null,null,null,null,null,null,null,null,null,null,null,null,null,null,null,null,null," (требуется обновление)"]
[null,{"$f":"\"Код шаблона: \" & GetCode()","v":"Код шаблона: JKH.OPEN.INFO.QUARTER.HVS.6"}]
[null,{"$f":"\"Версия \" & GetVersion()","v":"Версия 1.0"}]
[]
[null,"Информация о наличии (отсутствии) технической возможности подключения к централизованной системе холодного водоснабжения, а также о регистрации и ходе реализации заявок о подключении к централизованной системе холодного водоснабжения"]
[]
[null,null,null,null,"• На рабочем месте должен быть установлен MS Office 2003 SP3, 2007 SP3, 2010, 2013 с полной версией MS Excel                                                                                                                                • Для корректной работы отчета необходим доступ к сети \"Интернет\"                                                         \n                                                                                                                                                          • Макросы во время работы должны быть включены (!)\n• Для корректной работы отчёта требуется выбрать низкий уровень безопасности\n(В меню MS Excel 2003: Сервис | Макрос | Безопасность | выбрать пункт «Низкая безопасность» | OK)\n(В меню MS Excel 2007/2010/2013: Параметры Excel | Центр управления безопасностью | Параметры центра управления безопасностью | Параметры макросов | Включить все макросы | ОК)\n\n• Если Вы работаете в табличном процессоре MS Excel 2007 и выше, то можете использовать для работы формат XLSB (Двоичная книга Excel). При работе в формате XLSB заметно быстрее происходит сохранение файла, а также уменьшается размер по сравнению с форматами XLS и XLSM\n\n• Не рекомендуется снимать защиту с листов и каким-либо образом модифицировать защищаемые формулы и расчётные поля, в противном случае, отчёт будет отклонён системой\n• При сохранении не следует выбирать формат XLSX (Книга Excel), так как в указанном формате макросы, необходимые для работы отчёта, безвозвратно удаляются"]
[]
[]
[]
[]
[]
[]
[]
[]
[]
[]
[]
[]
[]
[null,null,null,null,"A"," - не обязательные для заполнения",null,null,null,null,null,null,null,null,"A"," - с формулами и константами"]
[null,null,null,null,"A"," - обязательные для заполнения",null,null,null,null,null,null,null,null,"A"," - с выбором значений до двойному клику,"]
[null,null,null,null,null,null,null,null,null,null,null,null,null,null,null,"либо с возможностью выбора даты из календаря или ручного ввода"]
[]
[]
[]
[]
[]
[]
[]
[]
[]
[]
[]
[null,null,null,null,"Если в предложенном Вам списке необходимая организация, МР/МО отсутствуют, обновите реестры с помощью кнопок\n\nВ результате синхронизации с базой данных список организаций (МР/МО) будет заменён актуальным (механизм синхронизации требует подключения к сети Интернет и основан на использовании протокола HTTPS (TCP порт 443))\n\nЕсли после обновления Вам не удалось найти необходимую организацию в списке, обратитесь к ответственному за поддержание реестра Вашего региона."]
[]
[]
[]
[]
[]
[]
[]
[]
[]
[]
[null,null,null,null,"• При сохранении шаблона осуществляется проверка корректности данных, в том числе на наличие значений в ячейках, обязательных для заполнения\n\n• Если какая-то ячейка не удовлетворяет условию проверки, на лист «Проверка» добавляется гиперссылка на данную ячейку и указывается причина ошибки\n\n• В колонке «Статус» для каждого сообщения возможны 2 значения: ошибка и предупреждение\n\n• При наличии сообщений со статусом «Ошибка» шаблон будет отклонён системой и не будет загружен в хранилище данных, сообщения со статусом «Предупреждение» носят информационный характер, и такой шаблон будет принят системой"]
[]
[]
[]
[]
[]
[]
[]
[]
[]
[]
[]
[null,null,null,null,"Обратиться в службу технической поддержки"]
[]
[]
[]
[]
[]
[]
[]
[]
[]
[]
[]
[null,null,null,null,"Законодательная основа шаблона"]
[null,null,null,null,"Данный шаблон разработан в соответствии с:"]
[null,null,null,null," • ","Постановлением Правительства РФ от 17.01.2013 N 6 \"О стандартах раскрытия информации в сфере водоснабжения и водоотведения\""]
[null,null,null,null," • ","Приказом ФСТ России от 15.05.2013 N 129 \"Об утверждении форм предоставления информации, подлежащей раскрытию, организациями, осуществляющими горячее водоснабжение, холодное водоснабжение и водоотведение, и органами регулирования тарифов, а также Правил заполнения таких форм\""]
[]
[null,null,null,null,"Принципы работы с шаблоном"]
[null,null,null,null,"  Перед началом работы с шаблоном Вам необходимо нажать кнопку \"Приступить к заполнению\", после чего на форме выбора выбрать из выпадающего списка нужный субъект РФ. После выбора субъекта РФ в шаблоне отобразятся листы для заполнения."]
[null,null,null,null,"  На листе «Титульный» нужно заполнить все ячейки голубого цвета."]
[null,null,null,null,"  На листе «Уведомление» «Адрес сайта в сети интернет» вводите, не нарушая цвет ячейки /если копируете гиперссылку из браузера, то выполните двойной щелчок левой кнопки мыши по ячейке и только после этого можете вставить скопированный элемент/.\n"]
[null,null,null,null,"  При вводе даты на расчетных листах необходимо выбрать дату из календаря (иконка справа от выбранной ячейки), либо ввести дату непосредственно в ячейку в формате - 'ДД.ММ.ГГГГ'."]
[null,null,null,null,"  Если какой-либо из показателей на расчетных листах для Вашей организации отсутствует, введите в поле, обязательное для заполнение, «0» (для числовых показателей) и «-» (для текстовых).\n"]
[null,null,null,null,"  Внимательно следите за информационными сообщениями на расчетных листах."]
[null,null,null,null,"  Все необходимые комментарии по всем формам Вы можете отразить на листе «Комментарии»."]
[null,null,null,null,"Инструкция по загрузке сопроводительных материалов с помощью \"ЕИАС Мониторинг\""]
[null,null,null,null,"Получить более полную Инструкцию для данного шаблона"]
[]
[null,null,null,null,"При наличии подключения к Интернет, можно автоматически проверять наличие доступных обновлений. Выберите способ оповещения о наличии обновлений для отчёта:"]
[]
[null,null,null,null,null,"проверять доступные обновления (рекомендуется)",null,null,null,null,null,null,null,null,null,null,null,null,null,null,null,null,null,null,null,null,"y"]
[]
[null,null,null,null,null,"никогда не проверять наличие обновлений (не рекомендуется)"]

{"sheet":"Лог обновления","index":1,"n_rows":9,"n_cols":3,"rows_kept":9,"cut":false,"hidden":true,"merged":[]}
["Дата/Время","Сообщение","Статус"]
["2018-07-20T09:59:42","Проверка доступных обновлений...","Информация"]
["2018-07-20T09:59:43","Нет доступных обновлений для отчёта с кодом JKH.OPEN.INFO.QUARTER.HVS.6!","Информация"]
["2018-07-20T10:00:00","Проверка доступных обновлений...","Информация"]
["2018-07-20T10:00:02","Нет доступных обновлений для отчёта с кодом JKH.OPEN.INFO.QUARTER.HVS.6!","Информация"]
["2018-07-20T10:05:25","Проверка доступных обновлений...","Информация"]
["2018-07-20T10:05:26","Нет доступных обновлений для отчёта с кодом JKH.OPEN.INFO.QUARTER.HVS.6!","Информация"]
["2018-07-23T09:06:16","Проверка доступных обновлений...","Информация"]
["2018-07-23T09:06:17","Нет доступных обновлений для отчёта с кодом JKH.OPEN.INFO.QUARTER.HVS.6!","Информация"]

{"sheet":"Титульный","index":2,"n_rows":41,"n_cols":6,"rows_kept":41,"cut":false,"hidden":false,"merged":[[4,4,4,5]]}
[null,null,null,null,null,28932690]
[]
[]
[null,null,null,null,null,{"$f":"version","v":"Версия 1.0"}]
[null,null,null,null,"Информация о наличии (отсутствии) технической возможности подключения к централизованной системе холодного водоснабжения, а также о регистрации и ходе реализации заявок о подключении к централизованной системе холодного водоснабжения"]
[]
[null,null,null,null,"Субъект РФ","Республика Татарстан"]
[]
[null,null,null,null,"Публикация2","На сайте регулирующего органа"]
[]
[null,null,null,null,"По решению организации информация раскрыта на ее официальном сайте в сети Интернет?","да"]
[]
[null,null,null,null,"Тип отчета","Первичное раскрытие информации"]
[null,null,null,null,"Дата внесения изменений в информацию, подлежащую раскрытию"]
[]
[null,null,null,null,"Применяется дифференциация тарифа по централизованным системам теплоснабжения?"]
[null,null,null,null,"Информация по скольким централизованным системам теплоснабжения будет заполнена в шаблоне?"]
[]
[null,null,null,null,null,"Отчетный период"]
[null,null,null,null,"Год",2018]
[null,null,null,null,"Квартал","II квартал"]
[]
[null,null,null,null,"Является ли данное юридическое лицо подразделением (филиалом) другой организации"]
[]
[]
[null,null,null,null,"Наименование организации (филиала)","АО \"Чистополь-Водоканал\""]
[]
[]
[null,null,null,null,"Наименование головной организации"]
[null,null,null,null,"ИНН","1652022810"]
[null,null,null,null,"КПП","165201001"]
[null,null,null,null,"Вид деятельности"]
[]
[null,null,null,null,"Почтовый адрес регулируемой организации","422980, г. Чистополь, ул. К. Либкнехта, 1Д"]
[null,null,null,null,"Фамилия, имя, отчество руководителя","Ахметзянов Талгат Анасович"]
[]
[null,null,null,null,null,"Ответственный за составление формы"]
[null,null,null,null,"Фамилия, имя, отчество","Гусев Сергей Вячеславович"]
[null,null,null,null,"Должность","Начальник ПТО"]
[null,null,null,null,"(код) номер телефона","(84342) 5-04-29"]
[null,null,null,null,"e-mail","gupvoda@mail.ru"]

{"sheet":"Территории","index":3,"n_rows":16,"n_cols":17,"rows_kept":16,"cut":false,"hidden":false,"merged":[[3,3,3,7],[4,3,4,7],[6,3,6,4],[6,5,6,6],[9,5,9,6],[8,8,8,11],[9,8,9,9],[8,5,8,7],[10,8,10,9],[8,3,8,4],[12,3,14,3],[12,4,14,4],[12,5,13,5],[12,6,13,6],[12,7,13,7],[10,5,10,6]]}
[]
[]
[]
[null,null,null,"Перечень муниципальных районов и муниципальных образований (территорий оказания услуг)"]
[null,null,null,{"$f":"IF(org=0,\"Не определено\",org)","v":"АО \"Чистополь-Водоканал\""}]
[]
[null,null,null,null,null,"да"]
[]
[null,null,null,"Территория оказания услуг",null,"Муниципальный район",null,null,"Муниципальное образование"]
[null,null,null,"№ п/п","Наименование","№ п/п",null,"Наименование","№ п/п",null,"Наименование","ОКТМО"]
[null,null,null,"1","2","3",null,"4","5",null,"6","7"]
[null,null,null,0,null,"",null,null,""]
[null,"auto",null,1,"Чистопольский муниципальный район, Город Чистополь (92659101);","",1,"Чистопольский муниципальный район","","1","Город Чистополь","92659101",null,null,null,null,"Чистопольский муниципальный район, Город Чистополь (92659101);"]
[null,null,null,null,null,null,null,null,"",null,""]
[null,null,null,null,null,"",null,"",""]
[null,"man",null,null,"","",null,null,"",null,null,null,null,null,null,null,"Добавить территорию оказания услуг"]

{"sheet":"Дифференциация","index":4,"n_rows":26,"n_cols":26,"rows_kept":26,"cut":false,"hidden":false,"merged":[[17,0,18,0],[17,3,17,4],[3,3,3,8],[4,3,4,8],[7,4,7,5],[8,1,8,3],[5,0,6,5],[7,1,7,3],[8,4,8,5],[9,1,9,3],[9,4,9,5],[13,1,13,3],[10,4,10,5],[24,2,25,2],[11,1,11,3],[12,1,12,3],[21,4,23,4],[21,5,23,5],[10,1,10,3],[21,3,23,3],[18,6,18,7],[21,6,22,6],[21,7,22,7],[21,8,22,8],[21,9,22,9],[17,5,17,8],[17,9,17,12],[19,6,19,7],[19,10,19,11],[18,10,18,11]]}
[]
[]
[]
[null,null,null,"Информация о наличии (отсутствии) технической возможности подключения к централизованной системе холодного водоснабжения, а также о регистрации и ходе реализации заявок о подключении к централизованной системе холодного водоснабжения"]
[null,null,null,{"$f":"IF(org=0,\"Не определено\",org)","v":"АО \"Чистополь-Водоканал\""}]
[]
[]
[]
[]
[]
[]
[]
[]
[]
[]
[]
[]
[null,null,null,"Вид деятельности",null,"Дифференциация по территориям оказания услуг",null,null,null,"Дифференциация по централизованным системам холодного водоснабжения"]
[null,null,null,"№ п/п","Наименование","да/нет","№ п/п",null,"Наименование","да/нет","№ п/п",null,"Наименование"]
[null,null,null,"1","2","3","4",null,"5","6","7",null,"8"]
[]
[null,null,null,"1","Подключение (технологическое присоединение) к централизованной системе водоснабжения","нет",null,1,null,"нет","","1","",null,null,null,null,null,null,null,null,null,null,64235587,"a",1705000]
[null,null,null,null,null,null,null,null,null,null,"",null,""]
[null,null,null,null,null,null,null,null,"",null,""]
[null,null,null,null,"",null,null,null,null,null,""]
[null,null,null,null,null,null,null,null,null,null,""]

{"sheet":"Доступ к товарам и услугам","index":5,"n_rows":15,"n_cols":10,"rows_kept":15,"cut":false,"hidden":false,"merged":[[6,8,6,9],[3,3,3,9],[12,8,12,9],[4,3,4,9],[12,3,14,3],[12,4,14,4],[12,5,14,5],[12,6,13,6],[12,7,13,7],[6,3,7,3],[6,4,7,4],[6,5,7,5],[6,6,7,6],[6,7,7,7]]}
[null,null,null,null,null,null,null,null,null,4]
[]
[]
[null,null,null,"Информация о наличии (отсутствии) технической возможности подключения к централизованной системе холодного водоснабжения, а также о регистрации и ходе реализации заявок о подключении к централизованной системе холодного водоснабжения"]
[null,null,null,{"$f":"IF(org=0,\"Не определено\",org)","v":"АО \"Чистополь-Водоканал\""}]
[]
[null,null,null,"№ п/п","Информация, подлежащая раскрытию","Единица измерения","О","№ п/п","Вид деятельности:\r\n  - Подключение (технологическое присоединение) к централизованной системе водоснабжения\r\n\r\nТерритория оказания услуг:\r\n  - без дифференциации\r\n\r\nЦентрализованная система холодного водоснабжения:\r\n  - без дифференциации"]
[null,null,null,null,null,null,null,null,"Показатель","Комментарий"]
[null,null,null,"1","2","3",null,null,{"$f":"J1&\".1\"","v":"4.1"},{"$f":"J1&\".2\"","v":"4.2"}]
[null,null,null,1,"Количество поданных заявок","шт",null,null,0]
[null,null,null,2,"Количество исполненных заявок","шт",null,null,0]
[null,null,null,3,"Количество заявок с решением об отказе в подключении","шт",null,null,0]
[null,null,null,4,"Резерв мощности централизованной системы холодного водоснабжения в течение квартала","тыс.куб.м/сутки",null,1,"Централизозованной системы холодного водоснабжения"]
[null,null,null,null,null,null,null,null,8]
[null,null,null,null,null,null,null,null,"Добавить централизованную систему холодного водоснабжения"]

{"sheet":"Публикация в других источниках","index":6,"n_rows":12,"n_cols":8,"rows_kept":12,"cut":false,"hidden":false,"merged":[[7,3,8,3],[7,4,8,4],[7,5,7,7],[4,3,4,4],[5,3,5,4]]}
[]
[]
[]
[]
[null,null,null,"Публикация в других источниках\n(публикация информации по решению организации на ее официальном сайте в сети \"Интернет\")"]
[null,null,null,{"$f":"IF(org=0,\"Не определено\",org)","v":"АО \"Чистополь-Водоканал\""}]
[]
[null,null,null,"№ п/п","Описание опубликованной информации","Официальный сайт организации в сети \"Интернет\""]
[null,null,null,null,null,"Дата\nразмещения информации","Адрес официальной страницы сайта\nв сети \"Интернет\", на котором размещена информация","Ссылка на снимок экрана\nофициальной страницы сайта в сети \"Интернет\", на котором размещена информация"]
[null,null,null,"1","2","3","4","5"]
[null,null,null,1,"Информация о наличии (отсутствии) технической возможности подключения к централизованной системе холодного водоснабжения, а также о регистрации и ходе реализации заявок о подключении к централизованной системе холодного водоснабжения (пункт 21 Постановления Правительства РФ от 17.01.2013 N 6 \"О стандартах раскрытия информации в сфере водоснабжения и водоотведения\")","15.07.2018","http://chistvodokanal.ru"]
[null,null,null,null,"Добавить опубликованную информацию"]

{"sheet":"Сведения об изменении","index":7,"n_rows":14,"n_cols":5,"rows_kept":14,"cut":false,"hidden":true,"merged":[[6,3,6,4],[7,3,7,4]]}
[]
[]
[]
[]
[]
[]
[null,null,null,"Сведения об изменениях в первоначально опубликованной информации"]
[null,null,null,{"$f":"IF(org=0,\"Не определено\",org)","v":"АО \"Чистополь-Водоканал\""}]
[]
[null,null,null,"№ п/п","Сведения"]
[null,null,null,"1","2"]
[null,null,null,0]
[null,null,null,1]
[null,null,null,null,"Добавить строку"]

{"sheet":"Комментарии","index":8,"n_rows":13,"n_cols":5,"rows_kept":13,"cut":false,"hidden":false,"merged":[[6,3,6,4],[7,3,7,4]]}
[]
[]
[]
[]
[]
[]
[null,null,null,"Комментарии"]
[null,null,null,{"$f":"IF(org=0,\"Не определено\",org)","v":"АО \"Чистополь-Водоканал\""}]
[]
[null,null,null,"№ п/п","Комментарий"]
[null,null,null,"1","2"]
[null,null,null,0]
[null,null,null,null,"Добавить"]

{"sheet":"Проверка","index":9,"n_rows":4,"n_cols":5,"rows_kept":4,"cut":false,"hidden":false,"merged":[[1,1,1,4]]}
[]
[null,"Результат проверки"]
[]
[null,"Ссылка1","Ссылка2","Причина","Статус"]

{"sheet":"AllSheetsInThisWorkbook","index":10,"n_rows":39,"n_cols":2,"rows_kept":39,"cut":false,"hidden":true,"merged":[]}
["Расчетные листы","Скрытые листы"]
["Инструкция","AllSheetsInThisWorkbook"]
["Лог обновления","TEHSHEET"]
["Титульный","modCheckCyan"]
["Территории","modSettings"]
["Дифференциация","modfrmSetForPrint"]
["Доступ к товарам и услугам","modInfo"]
["Публикация в других источниках","et_union_hor"]
["Сведения об изменении","et_union_vert"]
["Комментарии","modList00"]
["Проверка","modList01"]
[null,"modList02"]
[null,"modList03"]
[null,"modList07"]
[null,"modList09"]
[null,"modHTTP"]
[null,"modfrmRegion"]
[null,"MR_LIST"]
[null,"REESTR_VT"]
[null,"REESTR_VED"]
[null,"modfrmReestrObj"]
[null,"DataOrg"]
[null,"modProv"]
[null,"modReestr"]
[null,"modfrmReestr"]
[null,"modUpdTemplMain"]
[null,"REESTR_ORG"]
[null,"modClassifierValidate"]
[null,"modHyp"]
[null,"modfrmDateChoose"]
[null,"modComm"]
[null,"modThisWorkbook"]
[null,"REESTR_MO"]
[null,"modfrmReestrMR"]
[null,"modServiceModule"]
[null,"modfrmCheckUpdates"]
[null,"REESTR_DS"]
[null,"REESTR_CHS"]
[null,"REESTR_LINK"]

{"sheet":"TEHSHEET","index":11,"n_rows":43,"n_cols":14,"rows_kept":43,"cut":false,"hidden":true,"merged":[]}
["NSRF",null,"year_list","logical","Месяц\n(MONTH)","Квартал\n(QUARTER)","Месяц\n(kind_of_publication)","Единица измерения объема оказываемых услуг ГВС\n/kind_of_unit_GVS/","Вид тарифа\n/list_of_tariff/","mr_id","версия шаблона\n (DocProp_Version)","0.1","Тип отчета\ndata_type","Print_form"]
["Алтайский край",null,2013,"да","январь","I квартал","На официальном сайте организации","тыс.куб.м/сутки",null,52,"код шаблона\n(DocProp_TemplateCode)","JKH.OPEN.INFO.QUARTER.WARM.570","Первичное раскрытие информации","Форма 1.1"]
["Амурская область",null,2014,"нет","февраль","II квартал","На сайте регулирующего органа","Гкал/час","Без дифференциации","sys_id","сфера\n(TSphere)","ТС","Корректировка ранее раскрытой информации","Форма 1.2"]
["Астраханская область",null,2015,null,"март","III квартал",null,"куб.м/час",null,104,"сфера(латиница)\n(TSphere_trans)","WARM","Изменения в раскрытой ранее информации","Форма 1.3"]
["Белгородская область",null,2016,null,"апрель","IV квартал",null,null,null,null,"сфера расширено\n(TSphere_full)",null,null,"Форма 1.4"]
["Волгоградская область",null,2017,null,"май",null,null,null,null,null,null,null,null,"Форма 1.5"]
["Еврейская автономная область",null,null,null,"июнь",null,null,null,null,null,null,null,null,"Форма 1.6"]
["Кабардино-Балкарская республика",null,null,null,"июль",null,null,null,null,null,"true",null,null,"Форма 1.7"]
["Калининградская область",null,null,null,"август",null,null,null,null,null,null,null,null,"Форма 1.8"]
["Калужская область",null,null,null,"сентябрь",null,null,null,null,null,null,null,null,"Форма 1.9"]
["Кемеровская область",null,null,null,"октябрь",null,null,null,null,null,"https://appsrv.regportal-tariff.ru/procwsxls/",null,null,"Форма 1.10"]
["Костромская область",null,null,null,"ноябрь",null,null,null,null,null,null,null,null,"Форма 1.11"]
["Краснодарский край",null,null,null,"декабрь",null,null,null,null,null,null,null,null,"Форма 1.12"]
["Красноярский край",null,null,null,null,null,null,null,null,null,null,null,null,"Форма 2.1"]
["Ленинградская область",null,null,null,null,null,null,null,null,null,null,null,null,"Форма 2.2"]
["Нижегородская область",null,null,null,null,null,"Текущая дата",null,null,null,null,null,null,"Форма 2.3"]
["Новосибирская область",null,"Организация",{"$f":"IF(f_year = \"\",\"\", IF(LEN(f_quart)=0,\"\",IF(f_quart=\"I квартал\", \"01.01.\"&f_year,IF(f_quart=\"II квартал\",\"01.04.\"&f_year,(IF(f_quart=\"III квартал\", \"01.07.\"&f_year,\"01.10.\"&f_year)))) ))","v":"01.04.2018"},{"$f":"IF(f_year = \"\",\"\", IF(LEN(f_quart)=0,\"\",IF(f_quart=\"I квартал\", \"31.03.\"& f_year,IF(f_quart=\"II квартал\",\"30.06.\"& f_year,(IF(f_quart=\"III квартал\", \"30.09.\"& f_year,\"31.12.\"& f_year)))) ))","v":"30.06.2018"},null,"23.07.2018 14:06:16",null,null,null,null,null,null,"Форма 2.4"]
["Омская область",null,null,null,null,null,null,null,null,null,null,null,null,"Форма 2.5"]
["Оренбургская область",null,null,null,null,null,"Признак изменения данных на листе Доступ к товарам и услугам",null,null,null,null,null,null,"Форма 2.6"]
["Пермский край",null,"Виды деятельности",null,null,null,true,null,null,null,null,null,null,"Форма 2.7"]
["Республика Башкортостан",null,null,null,null,null,null,null,null,null,null,null,null,"Форма 2.8"]
["Республика Бурятия",null,null,null,null,null,null,null,null,null,null,null,null,"Форма 2.9"]
["Республика Дагестан",null,null,null,null,null,null,null,null,null,null,null,null,"Форма 2.10"]
["Республика Калмыкия",null,null,null,null,null,null,null,null,null,null,null,null,"Форма 2.11"]
["Республика Карелия",null,null,null,null,null,null,null,null,null,null,null,null,"Форма 2.12"]
["Республика Крым",null,null,null,null,null,null,null,null,null,null,null,null,"Форма 2.13"]
["Республика Татарстан",null,null,null,null,null,null,null,null,null,null,null,null,"Форма 2.14"]
["Ростовская область",null,null,null,null,null,null,null,null,null,null,null,null,"Форма 3.1"]
["Рязанская область",null,null,null,null,null,null,null,null,null,null,null,null,"Форма 3.2"]
["Самарская область",null,null,null,null,null,null,null,null,null,null,null,null,"Форма 3.3"]
["Ставропольский край",null,null,null,null,null,null,null,null,null,null,null,null,"Форма 3.4"]
["Тверская область",null,null,null,null,null,null,null,null,null,null,null,null,"Форма 3.5"]
["Томская область",null,null,null,null,null,null,null,null,null,null,null,null,"Форма 3.6"]
["Тульская область",null,null,null,null,null,null,null,null,null,null,null,null,"Форма 3.7"]
["Тюменская область",null,null,null,null,null,null,null,null,null,null,null,null,"Форма 3.8"]
["Удмуртская республика",null,null,null,null,null,null,null,null,null,null,null,null,"Форма 3.9"]
["Ульяновская область",null,null,null,null,null,null,null,null,null,null,null,null,"Форма 3.10"]
["Хабаровский край",null,null,null,null,null,null,null,null,null,null,null,null,"Форма 3.11"]
["Ханты-Мансийский автономный округ",null,null,null,null,null,null,null,null,null,null,null,null,"Форма 3.12"]
["Челябинская область",null,null,null,null,null,null,null,null,null,null,null,null,"Форма 4.1"]
["Чувашская республика",null,null,null,null,null,null,null,null,null,null,null,null,"Форма 4.2"]
["г.Севастополь",null,null,null,null,null,null,null,null,null,null,null,null,"Форма 4.3"]
[null,null,null,null,null,null,null,null,null,null,null,null,null,"Форма 4.4"]

{"sheet":"modCheckCyan","index":12,"n_rows":20,"n_cols":1,"rows_kept":20,"cut":false,"hidden":true,"merged":[]}
[]
[{"$f":"IF(Территории!$E$13=\"\",1,0)","v":0}]
[{"$f":"IF(Территории!$H$13=\"\",1,0)","v":0}]
[{"$f":"IF(Территории!$K$13=\"\",1,0)","v":0}]
[{"$f":"IF('Сведения об изменении'!$E$13=\"\",1,0)","v":1}]
[{"$f":"IF(Дифференциация!$E$22=\"\",1,0)","v":0}]
[{"$f":"IF(Дифференциация!$F$22=\"\",1,0)","v":0}]
[{"$f":"IF(Дифференциация!$J$22=\"\",1,0)","v":0}]
[{"$f":"IF('Публикация в других источниках'!$F$11=\"\",1,0)","v":0}]
[{"$f":"IF('Публикация в других источниках'!$G$11=\"\",1,0)","v":0}]
[{"$f":"IF('Доступ к товарам и услугам'!$I$11=\"\",1,0)","v":0}]
[{"$f":"IF('Доступ к товарам и услугам'!$I$11=\"Введите наименование централизованной системы холодного водоснабжения\",1,0)","v":0}]
[{"$f":"IF('Доступ к товарам и услугам'!$I$12=\"\",1,0)","v":0}]
[{"$f":"IF('Доступ к товарам и услугам'!$I$12=\"Введите наименование централизованной системы холодного водоснабжения\",1,0)","v":0}]
[{"$f":"IF('Доступ к товарам и услугам'!$I$13=\"\",1,0)","v":0}]
[{"$f":"IF('Доступ к товарам и услугам'!$I$13=\"Введите наименование централизованной системы холодного водоснабжения\",1,0)","v":0}]
[{"$f":"IF('Доступ к товарам и услугам'!$I$14=\"\",1,0)","v":0}]
[{"$f":"IF('Доступ к товарам и услугам'!$I$14=\"Введите наименование централизованной системы холодного водоснабжения\",1,0)","v":0}]
[{"$f":"IF('Доступ к товарам и услугам'!$I$10=\"\",1,0)","v":0}]
[{"$f":"IF('Доступ к товарам и услугам'!$I$10=\"Введите наименование централизованной системы холодного водоснабжения\",1,0)","v":0}]

{"sheet":"modSettings","index":13,"n_rows":14,"n_cols":3,"rows_kept":14,"cut":false,"hidden":true,"merged":[]}
["Версия шаблона","VERS_TEMP","BASE"]
["Настройка справочника наименований тарифов (Y / N)","FLAG_NAME_OF_TARIFF","YY"]
["Функционал уведомлений о раскрытии (Y / N)","FLAG_OPEN_UVED","YY"]
["Функционал отслеживания типа отчета (Y / N)","FLAG_TYPE_OF_REP","YY"]
["Подрезание МР/МО по сфере оказания услуг (Y / N)","FLAG_MR_MO","YY"]
["Печать шаблона (Y / N)","FLAG_PRINT_TEMP","YY"]
["Печатные формы (Y / N)","FLAG_PRINT_FORM","YY"]
["Размещение в шаблоне ссылок на материалы Хранилища (Y / N)","FLAG_LINK_DOC","NN"]
["Отметка об отсутствии Интернета в МР/МО (Y / N)","FLAG_INTERNET_MR_MO","YY"]
["Отметка о сдаче бух баланса (Y / N)","FLAG_BUH_BAL","YY"]
["Отметка о доле выручки (Y / N)","FLAG_PART_OF_REV","YY"]
["Отображение данных об организации (Y / N)","FLAG_DATA_ORG","YY"]
["Флаг забора данных из шаблонов группы PRICE (Y / N)","FLAG_AUTOFILL_PRICE","NN"]
["Наличие ссылок на снимки экрана страницы сайта в сети Интернет, на которой размещена информация (Y / N)","FLAG_REF","YY"]

{"sheet":"modfrmSetForPrint","index":14,"n_rows":0,"n_cols":0,"rows_kept":0,"cut":false,"hidden":true,"merged":[]}

{"sheet":"modInfo","index":15,"n_rows":25,"n_cols":2,"rows_kept":25,"cut":false,"hidden":true,"merged":[[16,3,16,10],[10,3,10,10],[11,3,11,10],[12,3,12,10],[13,3,13,10],[14,3,14,10],[15,3,15,10]]}
[null,"Титульный"]
[7,"Шаблон предназначен для отправки в субъект РФ, на территории которого осуществляется оказание услуг"]
[1,"Шаблон предназначен для предоставления в регулирующий орган следующей информации:\n1) о наличии (отсутствии) технической возможности подключения к централизованной системе холодного водоснабжения, а также о регистрации и ходе реализации заявок о подключении к централизованной системе холодного водоснабжения согласно пункту 21 Постановления Правительства РФ от 17.01.2013 N 6;\n2) cведения о раскрытии соответствующей информации на официальном сайте организации в сети Интернет, подлежащие предоставлению в орган исполнительной власти субъекта Российской Федерации в области государственного регулирования цен (тарифов) согласно пункту 10 Постановления Правительства РФ от 17.01.2013 N6;\n3) cведения об изменении, подлежащие публикации, на основании требований пункта 11 Постановления Правительства РФ от 17.01.2013 N 6."]
[2,"Информация, подлежит обязательному опубликованию на официальном сайте в сети \"Интернет\" органа исполнительной власти субъекта Российской Федерации в области государственного регулирования цен (тарифов), и (или) на официальном сайте органа местного самоуправления поселения или городского округа в случае их наделения в соответствии с законом субъекта Российской Федерации полномочиями по государственному регулированию цен (тарифов), согласно пункту 3а) Постановления Правительства РФ от 05.07.2013 №570."]
[3,"Если информация публикуется только на официальном сайте в информационно-телекоммуникационной сети \"Интернет\" (далее – сети Интернет) органа исполнительной власти субъекта Российской Федерации в области государственного регулирования цен (тарифов) или на официальном сайте органа местного самоуправления поселения или городского округа в случае их наделения в соответствии с законом субъекта Российской Федерации полномочиями по государственному регулированию цен (тарифов), в поле \"По решению организации информация раскрыта на ее официальном сайте в сети Интернет?\" необходимо указать \"Нет\".\n\nЕсли же информация дополнительно публикуется на официальном сайте организации в сети Интернет, в поле \"По решению организации информация раскрыта на ее официальном сайте в сети Интернет?\" необходимо указать \"Да\"."]
[4,"По умолчанию установлено значение «Первичное раскрытие информации». Это означает, что информация раскрывается в соответствии с установленными сроком и периодичностью.\n\nВ случае, если в раскрываемой информации произошли изменения, сведения об этих изменениях подлежат опубликованию в шаблоне с типом отчета \"Изменения в раскрытой ранее информации\".\n\nВ случае, если в уже отправленном шаблоне обнаружена ошибка, исправленный шаблон необходимо отправить с типом отчета «Корректировка ранее раскрытой информации»."]
[5,"В случае, если регулируемыми организациями оказываются услуги по нескольким технологически не связанным между собой централизованным системам холодного водоснабжения и если в отношении указанных систем устанавливаются различные тарифы в сфере холодного водоснабжения, то информация раскрывается отдельно по каждой централизованной системе холодного водоснабжения."]
[6]
[null,"Публикация на прочих ресурсах"]
[null,"Вводите адрес сайта, не нарушая цвет ячейки /если копируете гиперссылку из браузера, то выполните двойной щелчок по ячейке и только после этого можете вставить скопированный элемент/\nДля редактирования указанной гиперссылки или перехода по ней выполните двойной щелчок левой клавиши мыши по ячейке"]
[null,{"$f":"IF(OR(FLAG_LINK_DOC=\"Y\",FLAG_LINK_DOC=\"NY\",FLAG_LINK_DOC=\"YY\"),\"Указывается ссылка на загруженный в Хранилище ЕИАС снимок экрана официальной страницы сайта, на котором размещена информация\",\"Указывается ссылка на загруженный в Интернет-ресурс снимок экрана официальной страницы сайта, на котором размещена информация\") & \". Для редактирования указанной гиперссылки или перехода по ней выполните двойной щелчок левой клавиши мыши по ячейке\"","v":"Указывается ссылка на загруженный в Интернет-ресурс снимок экрана официальной страницы сайта, на котором размещена информация. Для редактирования указанной гиперссылки или перехода по ней выполните двойной щелчок левой клавиши мыши по ячейке"}]
[null,"Указывается дата, по состоянию на которую информация стала доступной в сети Интернет для неограниченного круга лиц\nВыберите значение из календаря (иконка справа от выбранной ячейки), либо введите дату непосредственно в ячейку в формате - 'ДД.ММ.ГГГГ'"]
[null,"Территории"]
[1,"Наименование территории оказания услуг для целей идентификации"]
[2,"Муниципальные районы и муниципальные образования, на территории которых осуществляется оказание услуг"]
[null,"Дифференциация"]
[1,"В случае, если регулируемая организация осуществляет несколько видов деятельности, информация о которых подлежит раскрытию, информация по каждому виду деятельности раскрывается отдельно."]
[2,"Поле заполняется выбором значений из списка. Если значений для выбора нет - убедитесь, что лист \"Территории\" заполнен."]
[3,"Условное наименование централизованной системы холодного водоснабжения для целей идентификации."]
[4,"В случае, если регулируемыми организациями оказываются услуги по нескольким технологически не связанным между собой  централизованным системам холодного водоснабжения и если в отношении указанных централизованных систем устанавливаются различные тарифы в сфере холодного водоснабжения, то информация раскрывается отдельно по каждой централизованной системе холодного водоснабжения."]
[null,"Доступ к товарам и услугам"]
[1,"При использовании регулируемой организацией нескольких централизованных систем холодного водоснабжения информация о резерве мощности таких централизованных систем публикуется в отношении каждой централизованной системы холодного водоснабжения."]
[null,"Сведения об изменении"]
[1,"Лист заполняется в случае, если на Титульном листе в поле \"Тип отчета\" выбрано значение «Изменения в раскрытой ранее информации»."]
[null,"Нет доступных обновлений, версия отчёта актуальна"]

{"sheet":"et_union_hor","index":16,"n_rows":46,"n_cols":26,"rows_kept":46,"cut":false,"hidden":true,"merged":[[34,9,35,9],[24,5,25,5],[24,6,25,6],[24,7,25,7],[18,3,20,3],[18,4,20,4],[18,5,19,5],[18,6,19,6],[18,7,19,7],[40,6,41,6],[40,7,41,7],[40,8,41,8],[40,9,41,9],[34,8,35,8],[34,3,36,3],[34,4,36,4],[34,5,36,5],[34,6,35,6],[34,7,35,7]]}
[]
[]
["et_List02"]
[]
[]
[]
["et_Comm"]
[]
[]
[]
["et_List03"]
[]
[]
[]
[]
[]
["et_List09_0"]
[]
[null,"auto",null,1,null,null,1,null,null,"1"]
[null,null,null,null,null,null,null,null,null,null,"Добавить МО"]
[null,null,null,null,null,null,null,"Добавить МР"]
[]
["et_List09_1"]
[]
[null,"auto",null,null,null,null,1,null,null,1]
[null,null,null,null,null,null,null,null,null,null,"Добавить МО"]
[]
["et_List09_2"]
[]
[null,"auto",null,null,null,null,null,null,null,1]
[]
[]
["et_List07_1"]
[]
[null,null,null,"1",null,"нет",null,1,null,"нет",null,"1",null,null,null,null,null,null,null,null,null,null,null,null,"a",1705000]
[null,null,null,null,null,null,null,null,null,null,null,null,"Добавить централизованную систему холодного водоснабжения"]
[null,null,null,null,null,null,null,null,"Добавить описание территории оказания услуг"]
[]
["et_List07_4"]
[]
[null,null,null,null,null,null,null,1,"","нет",null,"1",null,null,null,null,null,null,null,null,null,null,null,null,"a",1705000]
[null,null,null,null,null,null,null,null,null,null,null,null,"Добавить централизованную систему холодного водоснабжения"]
[]
["et_List07_5"]
[]
[null,null,null,null,null,null,null,null,null,null,null,"1","",null,null,null,null,null,null,null,null,null,null,null,"a",1705000]

{"sheet":"et_union_vert","index":17,"n_rows":0,"n_cols":0,"rows_kept":0,"cut":false,"hidden":true,"merged":[]}

{"sheet":"modList00","index":18,"n_rows":0,"n_cols":0,"rows_kept":0,"cut":false,"hidden":true,"merged":[]}

{"sheet":"modList01","index":19,"n_rows":14,"n_cols":10,"rows_kept":14,"cut":false,"hidden":true,"merged":[[3,3,3,9],[4,3,4,9],[6,3,7,3],[6,4,7,4],[6,5,7,5],[6,6,7,6],[6,8,6,9],[6,7,7,7],[12,7,13,7],[12,3,14,3],[12,4,14,4],[12,5,14,5],[12,6,13,6],[12,8,12,9]]}
[]
[]
[]
[]
[]
[]
[]
[null,null,null,null,null,null,null,null,"Показатель","Комментарий"]
[null,null,null,"1","2","3",null,null,{"$f":"J1&\".1\"","v":".1"},{"$f":"J1&\".2\"","v":".2"}]
[]
[]
[]
[null,null,null,null,null,null,null,null,"Введите наименование централизованной системы холодного водоснабжения"]
[null,null,null,null,null,null,null,null,""]

{"sheet":"modList02","index":20,"n_rows":0,"n_cols":0,"rows_kept":0,"cut":false,"hidden":true,"merged":[[7,3,8,3],[7,4,8,4],[4,3,4,4],[5,3,5,4],[7,5,7,7]]}

{"sheet":"modList03","index":21,"n_rows":0,"n_cols":0,"rows_kept":0,"cut":false,"hidden":true,"merged":[[6,3,6,4],[7,3,7,4]]}

{"sheet":"modList07","index":22,"n_rows":22,"n_cols":26,"rows_kept":22,"cut":false,"hidden":true,"merged":[[3,3,3,8],[4,3,4,8],[5,0,6,5],[7,1,7,3],[17,0,18,0],[17,3,17,4],[17,5,17,8],[7,4,7,5],[8,1,8,3],[8,4,8,5],[11,1,11,3],[12,1,12,3],[13,1,13,3],[21,8,22,8],[21,9,22,9],[9,1,9,3],[9,4,9,5],[10,1,10,3],[10,4,10,5],[21,5,23,5],[24,2,25,2],[17,9,17,12],[18,6,18,7],[18,10,18,11],[19,6,19,7],[19,10,19,11],[21,3,23,3],[21,4,23,4],[21,7,22,7],[21,6,22,6]]}
[]
[]
[]
[]
[]
[]
[]
[]
[]
[]
[]
[]
[]
[]
[]
[]
[]
[]
[]
[]
[]
[null,null,null,null,null,null,null,null,null,null,null,null,null,null,null,null,null,null,null,null,null,null,null,64279412,"a",1705000]

{"sheet":"modList09","index":23,"n_rows":16,"n_cols":4,"rows_kept":16,"cut":false,"hidden":true,"merged":[[12,3,14,3],[12,4,14,4],[12,5,13,5],[12,6,13,6],[12,7,13,7],[8,5,8,7],[8,8,8,11],[9,5,9,6],[9,8,9,9],[10,5,10,6],[10,8,10,9],[3,3,3,7],[4,3,4,7],[6,3,6,4],[6,5,6,6],[8,3,8,4]]}
[]
[]
[]
[]
[]
[]
[]
[]
[]
[]
[]
[null,null,null,0]
[null,"man"]
[]
[]
[null,"man"]

{"sheet":"modHTTP","index":24,"n_rows":0,"n_cols":0,"rows_kept":0,"cut":false,"hidden":true,"merged":[]}

{"sheet":"modfrmRegion","index":25,"n_rows":0,"n_cols":0,"rows_kept":0,"cut":false,"hidden":true,"merged":[]}

{"sheet":"MR_LIST","index":26,"n_rows":0,"n_cols":0,"rows_kept":0,"cut":false,"hidden":true,"merged":[]}

{"sheet":"REESTR_VT","index":27,"n_rows":0,"n_cols":0,"rows_kept":0,"cut":false,"hidden":true,"merged":[]}

{"sheet":"REESTR_VED","index":28,"n_rows":4,"n_cols":2,"rows_kept":4,"cut":false,"hidden":true,"merged":[]}
["ID_TARIFF_NAME","VED_NAME"]
[64235586,"Холодное водоснабжение, в т.ч. подвоз воды"]
[64235587,"Подключение (технологическое присоединение) к централизованной системе водоснабжения"]
[64235585,"Холодное водоснабжение, в т.ч. транспортировка воды, включая распределение воды"]

{"sheet":"modfrmReestrObj","index":29,"n_rows":0,"n_cols":0,"rows_kept":0,"cut":false,"hidden":true,"merged":[]}

{"sheet":"DataOrg","index":30,"n_rows":0,"n_cols":0,"rows_kept":0,"cut":false,"hidden":true,"merged":[]}

{"sheet":"modProv","index":31,"n_rows":0,"n_cols":0,"rows_kept":0,"cut":false,"hidden":true,"merged":[]}

{"sheet":"modReestr","index":32,"n_rows":0,"n_cols":0,"rows_kept":0,"cut":false,"hidden":true,"merged":[]}

{"sheet":"modfrmReestr","index":33,"n_rows":0,"n_cols":0,"rows_kept":0,"cut":false,"hidden":true,"merged":[]}

{"sheet":"modUpdTemplMain","index":34,"n_rows":0,"n_cols":0,"rows_kept":0,"cut":false,"hidden":true,"merged":[]}

{"sheet":"REESTR_ORG","index":35,"n_rows":209,"n_cols":10,"rows_kept":209,"cut":false,"hidden":true,"merged":[]}
["№","REGION_ID","REGION_NAME","RST_ORG_ID","ORG_NAME","INN_NAME","KPP_NAME","ORG_START_DATE","ORG_END_DATE"]
[1,"2642","Республика Татарстан","26402601","АО \"Альметьевск-Водоканал\"","1644034674","164401001",null,null,"VS"]
[2,"2642","Республика Татарстан","30364005","АО \"Аммоний\"","1627005779","162701001",null,null,"VS"]
[3,"2642","Республика Татарстан","26354328","АО \"Балтасинское МПП ЖКХ\"","1612005906","161201001",null,null,"VS"]
[4,"2642","Республика Татарстан","28868827","АО \"Буинск-Водоканал\"","1614007578","161401001",null,null,"VS"]
[5,"2642","Республика Татарстан","26354423","АО \"Водопроводно-канализационное и энергетическое хозяйство\"","1651035245","165101001",null,null,"VS"]
[6,"2642","Республика Татарстан","26354332","АО \"Высокогорские коммунальные сети\"","1616016031","161601001",null,null,"VS"]
[7,"2642","Республика Татарстан","30791606","АО \"ГУ ЖКХ\"","5116000922","166045001",null,null,"VS"]
[8,"2642","Республика Татарстан","26560525","АО \"ГУ ЖКХ\"","5116000922","511601001","13-05-2009 00:00:00",null,"VS"]
[9,"2642","Республика Татарстан","30943182","АО \"ГУ ЖКХ\" - филиал Зеленодольский район","5116000922","166045000",null,null,"VS"]
[10,"2642","Республика Татарстан","29645570","АО \"ЗВКС\"","1648041104","164801001",null,null,"VS"]
[11,"2642","Республика Татарстан","26322532","АО \"КМПО\"","1657005416","166101001",null,null,"VS"]
[12,"2642","Республика Татарстан","26508783","АО \"Казанский оптико-механический завод\"","1660004229","168150001",null,null,"VS"]
[13,"2642","Республика Татарстан","26779141","АО \"Казаньзернопродукт\"","1658001372","165801001",null,null,"VS"]
[14,"2642","Республика Татарстан","26402595","АО \"Коммунальные сети Мензелинского района\"","1628006905","162801001",null,null,"VS"]
[15,"2642","Республика Татарстан","30906854","АО \"Кузембетьевский РМЗ\"","1628000773","162801001",null,null,"VS"]
[16,"2642","Республика Татарстан","26322533","АО \"Международный аэропорт \"Казань\"","1660000344","162401001",null,null,"VS"]
[17,"2642","Республика Татарстан","26354354","АО \"Муслюмовские инженерные сети\"","1629003801","162901001",null,null,"VS"]
[18,"2642","Республика Татарстан","26354356","АО \"Нурлатские тепловые сети\"","1632009786","163201001",null,null,"VS"]
[19,"2642","Республика Татарстан","30353826","АО \"ОЭЗ \"Иннополис\"","1655265698","161501001",null,null,"VS"]
[20,"2642","Республика Татарстан","26322562","АО \"ОЭЗ ППТ \"Алабуга\"","1646019914","164601001",null,null,"VS"]
[21,"2642","Республика Татарстан","26354409","АО \"Осиновские инженерные сети\"","1648018708","164801001",null,null,"VS"]
[22,"2642","Республика Татарстан","27908518","АО \"ПОЗиС","1648032420","168150001","19-12-2011 00:00:00",null,"VS"]
[23,"2642","Республика Татарстан","27556424","АО \"РПО \"Таткоммунэнерго\"","1660093204","166001001",null,null,"VS"]
[24,"2642","Республика Татарстан","26322556","АО \"СК \"Энерготехника\"","1660110837","166001001",null,null,"VS"]
[25,"2642","Республика Татарстан","26405842","АО \"СОВ-НКНХ\"","1651052730","165101001",null,null,"VS"]
[26,"2642","Республика Татарстан","26354361","АО \"Сабинское МПП ЖКХ\"","1635005846","163501001",null,null,"VS"]
[27,"2642","Республика Татарстан","26601772","АО \"Судоходная компания \"Татфлот\"","1655063726","161501001",null,null,"VS"]
[28,"2642","Республика Татарстан","28427136","АО \"ТАНЕКО\"","1651044095","997250001",null,null,"VS"]
[29,"2642","Республика Татарстан","26489288","АО \"Татэнерго\"","1657036630","165501001","01-02-2009 00:00:00",null,"VS"]
[30,"2642","Республика Татарстан","26405861","АО \"Тетюши-водоканал\"","1638004833","163801001",null,null,"VS"]
[31,"2642","Республика Татарстан","28953157","АО \"Транснефть-Прикамье\"","1645000340","165501001",null,null,"VS"]
[32,"2642","Республика Татарстан","28932690","АО \"Чистополь-Водоканал\"","1652022810","165201001",null,null,"VS"]
[33,"2642","Республика Татарстан","26808802","Горьковская дирекция по тепловодоснабжению структурное подразделение Центральной дирекции по тепловодоснабжению - филиала ОАО \"РЖД\"","7708503727","525745041",null,null,"VS"]
[34,"2642","Республика Татарстан","30884402","ЗАО \"Коттеджный поселок \"Загородная усадьба\"","1655171640","165901001",null,null,"VS"]
[35,"2642","Республика Татарстан","26508701","ИП Зарипов Н.Г.","163100024393","отсутствует",null,null,"VS"]
[36,"2642","Республика Татарстан","28982416","ИП Леонтьев Николай Валериевич","164402960030","отсутствует",null,null,"VS"]
[37,"2642","Республика Татарстан","28828851","ИП Рамазанов Рифхат Харрасович","163100934434","отсутствует",null,null,"VS"]
[38,"2642","Республика Татарстан","26811451","ИП Хасанов Фанис Фоатович","164408469943","отсутствует",null,null,"VS"]
[39,"2642","Республика Татарстан","27995794","КФХ \"Козлова М.И.\"","163100013225","отсутствует",null,null,"VS"]
[40,"2642","Республика Татарстан","26807701","Казанская ТЭЦ-1 - филиал АО \"Татэнерго\"","1657036630","165902001",null,null,"VS"]
[41,"2642","Республика Татарстан","26807704","Казанская ТЭЦ-2 - филиал АО \"Татэнерго\"","1657036630","166102001",null,null,"VS"]
[42,"2642","Республика Татарстан","26804882","Казанский филиал Акционерного общества \"Девелоперская корпорация \"Антей\"","5029087035","163302001",null,null,"VS"]
[43,"2642","Республика Татарстан","26812367","Куйбышевская дирекция  по тепловодоснабжению структурное подразделение Центральной дирекции по тепловодоснабжению филиала ПАО «РЖД»","7708503727","631145034",null,null,"VS"]
[44,"2642","Республика Татарстан","26354350","ЛПУП Санаторий \"Бакирово\"","1625000119","164901001",null,null,"VS"]
[45,"2642","Республика Татарстан","26354341","Лечебно - профилактическое учреждение профсоюзов санаторий \"Васильевский\"","1620000411","162001001",null,null,"VS"]
[46,"2642","Республика Татарстан","28827948","МКП БМР \"Водоканал\"","1611290182","161101001",null,null,"VS"]
[47,"2642","Республика Татарстан","26354325","МУП \"Атнинское ЖКХ\"","1610002473","161001001",null,null,"VS"]
[48,"2642","Республика Татарстан","28817030","МУП \"Благоустройство и озеленение\"","1629004227","162900001",null,null,"VS"]
[49,"2642","Республика Татарстан","26405877","МУП \"Водоканал\"","1653006666","166001001",null,null,"VS"]
[50,"2642","Республика Татарстан","28507710","МУП \"Волжанка\"","1615007482","161501001",null,null,"VS"]
[51,"2642","Республика Татарстан","27900153","МУП \"Елабужский Водоканал\"","1646033740","164601001","16-10-2012 00:00:00",null,"VS"]
[52,"2642","Республика Татарстан","26405916","МУП \"ЖКХ (Инженерные сети)\"","1644045186","164401001",null,null,"VS"]
[53,"2642","Республика Татарстан","26354344","МУП \"Кайбицкое ЖКХ\"","1621000252","162101001",null,null,"VS"]
[54,"2642","Республика Татарстан","28794019","МУП \"Коммунальные сети Черемшанского района\"","1640006796","164001001",null,null,"VS"]
[55,"2642","Республика Татарстан","28792037","МУП \"Нижний Услон\"","1615007316","161501001",null,null,"VS"]
[56,"2642","Республика Татарстан","30991684","МУП \"Новошешминское ЖКХ\"","1631009663","163101001",null,null,"VS"]
[57,"2642","Республика Татарстан","26354343","МУП \"Нурлатское МПП ЖКХ\"","1620002144","162001001",null,null,"VS"]
[58,"2642","Республика Татарстан","31004867","МУП \"Перспектива\"","1617005900","161701001",null,null,"VS"]
[59,"2642","Республика Татарстан","28536182","МУП \"Печищи\"","1615007700","161501001",null,null,"VS"]
[60,"2642","Республика Татарстан","26354376","МУП \"Сельхозжилсервис\"","1643006561","164301001",null,null,"VS"]
[61,"2642","Республика Татарстан","30796651","МУП \"УК\"","1633607147","163301001",null,null,"VS"]
[62,"2642","Республика Татарстан","28943188","МУП \"Управление ЖКХ Менделеевского муниципального района\"","1627009678","162701001",null,null,"VS"]
[63,"2642","Республика Татарстан","27840693","МУП \"Уют\"","1622006909","162201001","11-03-2012 00:00:00",null,"VS"]
[64,"2642","Республика Татарстан","28449529","Нижнекамская ТЭЦ (ПТК-1) -филиал ОАО \"ТГК-16\"","1655189422","165143001",null,null,"VS"]
[65,"2642","Республика Татарстан","28493154","ОАО \"Азнакаевское ПТС\"","1643013463","164301001",null,null,"VS"]
[66,"2642","Республика Татарстан","26405741","ОАО \"Алексеевскводоканал\"","1605004556","160501001",null,null,"VS"]
[67,"2642","Республика Татарстан","28492948","ОАО \"Зеленодольский завод имени А.М.Горького\" Санаторий-профилакторий \"Дельфин\"","1648013442","168150001",null,null,"VS"]
[68,"2642","Республика Татарстан","27796151","ОАО \"Ипотечное агентство Республики Татарстан\"","1655071678","165501001",null,null,"VS"]
[69,"2642","Республика Татарстан","27568731","ОАО \"Казанский завод синтетического каучука\"","1659032038","165901001","11-01-2012 00:00:00",null,"VS"]
[70,"2642","Республика Татарстан","26354346","ОАО \"Камско-Устьинские коммунальные сети\"","1622005013","162201001",null,null,"VS"]
[71,"2642","Республика Татарстан","26354329","ОАО \"Киятское МПП ЖКХ\"","1614007507","161401001",null,null,"VS"]
[72,"2642","Республика Татарстан","26354431","ОАО \"Коммунальные сети Черемшанского района\"","1640004157","164001001",null,null,"VS"]
[73,"2642","Республика Татарстан","26405761","ОАО \"Куйбышевско-Затонские коммунальные сети\"","1622005020","162201001",null,null,"VS"]
[74,"2642","Республика Татарстан","26405831","ОАО \"Мамадышский водоканал\"","1626008223","162601001",null,null,"VS"]
[75,"2642","Республика Татарстан","26405859","ОАО \"Масловский\"","1634003860","165501001",null,null,"VS"]
[76,"2642","Республика Татарстан","26354323","ОАО \"Новокинерское МПП ЖКХ\"","1609009347","160901001",null,null,"VS"]
[77,"2642","Республика Татарстан","26541828","ОАО \"ТГК-16\"","1655189422","168150001",null,null,"VS"]
[78,"2642","Республика Татарстан","26354360","ОАО \"Шеморданское МПП ЖКХ Сабинского района\"","1635005684","163501001",null,null,"VS"]
[79,"2642","Республика Татарстан","26405759","ООО \" Водоканал\"","1601005735","160101001","05-05-2007 00:00:00",null,"VS"]
[80,"2642","Республика Татарстан","26405995","ООО \"Айзат\"","1644046574","164401001",null,null,"VS"]
[81,"2642","Республика Татарстан","27018980","ООО \"Алькеевские Коммунальные сети\"","1606006531","160601001","10-06-2011 00:00:00",null,"VS"]
[82,"2642","Республика Татарстан","26402600","ООО \"БРИГ\"","1651046871","165101001",null,null,"VS"]
[83,"2642","Республика Татарстан","26405803","ООО \"Бирюлинские коммунальные сети\"","1616018261","161601001",null,null,"VS"]
[84,"2642","Республика Татарстан","26405778","ООО \"Бугульма-Водоканал\"","1645016886","164501001",null,null,"VS"]
[85,"2642","Республика Татарстан","28261165","ООО \"Вода района\"","1649020837","164901001","09-08-2013 00:00:00",null,"VS"]
[86,"2642","Республика Татарстан","26405822","ООО \"ВодоТехноСервис\"","1623010400","162301001",null,null,"VS"]
[87,"2642","Республика Татарстан","30990099","ООО \"Водоканал Осиново\"","1648046600","164801001",null,null,"VS"]
[88,"2642","Республика Татарстан","26405897","ООО \"Водоканал\"","1605005091","160501001",null,null,"VS"]
[89,"2642","Республика Татарстан","28449361","ООО \"Водоканал\"","1649021125","164901001",null,null,"VS"]
[90,"2642","Республика Татарстан","28018939","ООО \"Водоканал-КП\"","1651067952","165101001","14-12-2012 00:00:00",null,"VS"]
[91,"2642","Республика Татарстан","26405775","ООО \"Водоканал-Сервис\"","1609010800","160901001",null,null,"VS"]
[92,"2642","Республика Татарстан","30837265","ООО \"Водолей\"","1632012517","163201001",null,null,"VS"]
[93,"2642","Республика Татарстан","28902265","ООО \"Газпром теплоэнерго Казань\"","1655317579","165501001","12-01-2015 00:00:00",null,"VS"]
[94,"2642","Республика Татарстан","26863745","ООО \"ГидроСервис\"","1604008847","160401001",null,null,"VS"]
[95,"2642","Республика Татарстан","26405922","ООО \"ЖКПСП \"Инфосервис\"","1644037957","164401001",null,null,"VS"]
[96,"2642","Республика Татарстан","26807269","ООО \"ЖКХ - Васильевка\"","1644061124","164401001","02-02-2011 00:00:00",null,"VS"]
[97,"2642","Республика Татарстан","26405999","ООО \"ЖКХ Кульшарипово\"","1644044425","164401001",null,null,"VS"]
[98,"2642","Республика Татарстан","26550595","ООО \"ЖКХ ст. Калейкино\"","1644058160","164401001",null,null,"VS"]
[99,"2642","Республика Татарстан","26405992","ООО \"ЖКХ-Аппак\"","1644040519","164401001",null,null,"VS"]
[100,"2642","Республика Татарстан","26405994","ООО \"ЖКХ-Зверь\"","1644040124","164401001",null,null,"VS"]
[101,"2642","Республика Татарстан","26402598","ООО \"ЖКХ-Миннибаево\"","1644042266","164401001",null,null,"VS"]
[102,"2642","Республика Татарстан","26405918","ООО \"ЖКХ-Новое Надырово\"","1644040808","164401001",null,null,"VS"]
[103,"2642","Республика Татарстан","26406000","ООО \"ЖКХ-Родник\"","1644041209","164401001",null,null,"VS"]
[104,"2642","Республика Татарстан","26405913","ООО \"ЖКХ-Сулеево\"","1644040163","164401001",null,null,"VS"]
[105,"2642","Республика Татарстан","26402632","ООО \"ЖКХ-Суркино\"","1644037121","164401001",null,null,"VS"]
[106,"2642","Республика Татарстан","26405911","ООО \"ЖКХ-Тайсуганово\"","1644041008","164401001",null,null,"VS"]
[107,"2642","Республика Татарстан","26405915","ООО \"ЖКХ-Шешма\"","1644040558","164401001",null,null,"VS"]
[108,"2642","Республика Татарстан","26405773","ООО \"ЖилКомСервис\"","1608007192","160801001",null,null,"VS"]
[109,"2642","Республика Татарстан","26509740","ООО \"Жилбыт\"","1633606697","163301001",null,null,"VS"]
[110,"2642","Республика Татарстан","27746036","ООО \"Жилищно-коммунальные услуги\"","1648028858","164801001","12-06-2012 00:00:00",null,"VS"]
[111,"2642","Республика Татарстан","28135400","ООО \"Жилкомплекс-ТМ\"","1616018504","161601001",null,null,"VS"]
[112,"2642","Республика Татарстан","28422851","ООО \"Жилкомсервис\"","1651068882","165101001",null,null,"VS"]
[113,"2642","Республика Татарстан","28975173","ООО \"Заинский Водоканал\"","1647016930","164701001",null,null,"VS"]
[114,"2642","Республика Татарстан","26354358","ООО \"Инженерные сети Кощаковские\"","1633006160","163301001",null,null,"VS"]
[115,"2642","Республика Татарстан","30814015","ООО \"Интеграция\"","1658191691","165801001",null,null,"VS"]
[116,"2642","Республика Татарстан","26406312","ООО \"КФХ\" Архангельское\"","1631004111","163101001",null,null,"VS"]
[117,"2642","Республика Татарстан","28508752","ООО \"КЭСП\"","1651037732","165101001",null,null,"VS"]
[118,"2642","Республика Татарстан","26354348","ООО \"Карсар\"","1624004368","168150001",null,null,"VS"]
[119,"2642","Республика Татарстан","30943162","ООО \"Карсар\" - филиал Лаишевский район","1624004368","168150000",null,null,"VS"]
[120,"2642","Республика Татарстан","30848652","ООО \"Керамика-Синтез\"","1615004548","161501001",null,null,"VS"]
[121,"2642","Республика Татарстан","26354369","ООО \"Коммунальные сети - Бетьки\"","1639035143","163901001",null,null,"VS"]
[122,"2642","Республика Татарстан","26791391","ООО \"Коммунальные сети - Круглое Поле\"","1639044500","163901001",null,null,"VS"]
[123,"2642","Республика Татарстан","26402512","ООО \"Коммунальные сети - Новый\"","1639035062","163901001",null,null,"VS"]
[124,"2642","Республика Татарстан","26354368","ООО \"Коммунальные сети - Татарстан\"","1639035055","163901001",null,null,"VS"]
[125,"2642","Республика Татарстан","26412782","ООО \"Коммунальные сети Дрожжаное\"","1617004014","161701001",null,null,"VS"]
[126,"2642","Республика Татарстан","27830961","ООО \"Куркачинские сети\"","1616022290","161601001","04-06-2012 00:00:00",null,"VS"]
[127,"2642","Республика Татарстан","26405825","ООО \"Лаишевский Коммунальный Сервис\"","1624010851","162401001",null,null,"VS"]
[128,"2642","Республика Татарстан","30346024","ООО \"Лениногорские тепловые сети\"","1649022584","164901001",null,null,"VS"]
[129,"2642","Республика Татарстан","28272949","ООО \"МЁША\"","1619006218","161901001","23-08-2013 00:00:00",null,"VS"]
[130,"2642","Республика Татарстан","28466743","ООО \"МКД Сервис\"","1648037193","164801001",null,null,"VS"]
[131,"2642","Республика Татарстан","26508778","ООО \"Менделеевсказот\"","1627005000","168150001",null,null,"VS"]
[132,"2642","Республика Татарстан","26405806","ООО \"Нижневязовской жилкомсервис\"","1648043158","164801001",null,null,"VS"]
[133,"2642","Республика Татарстан","26542465","ООО \"Нижнекамская ТЭЦ\"","1651057954","165101001",null,null,"VS"]
[134,"2642","Республика Татарстан","26354355","ООО \"Новошешминское МПП ЖКХ\"","1631003213","163101001",null,null,"VS"]
[135,"2642","Республика Татарстан","28830173","ООО \"ПСК XXI век\"","1655094562","165501001",null,null,"VS"]
[136,"2642","Республика Татарстан","26508631","ООО \"Промочистка\"","1632010887","163201001","01-01-2010 00:00:00",null,"VS"]
[137,"2642","Республика Татарстан","26508955","ООО \"РАИС\"","1644050980","164401001",null,null,"VS"]
[138,"2642","Республика Татарстан","28828300","ООО \"РСК\"","1660200738","166001001",null,null,"VS"]
[139,"2642","Республика Татарстан","26405826","ООО \"РСК\" Инженерные Технологии\"","1624010844","162401001",null,null,"VS"]
[140,"2642","Республика Татарстан","30856907","ООО \"РСО \"ЭКО\"","1633006837","163301001",null,null,"VS"]
[141,"2642","Республика Татарстан","30847997","ООО \"Родник\"","1601009169","160101001",null,null,"VS"]
[142,"2642","Республика Татарстан","28821707","ООО \"Родник\"","1614012070","161401001",null,null,"VS"]
[143,"2642","Республика Татарстан","28952930","ООО \"Рыбно-слободский жилищно-коммунальный сервис\"","1634009076","163401001",null,null,"VS"]
[144,"2642","Республика Татарстан","26641541","ООО \"Светводканал\"","1636006352","163601001",null,null,"VS"]
[145,"2642","Республика Татарстан","26412749","ООО \"Спасский  водоканал\"","1637006098","163701001",null,null,"VS"]
[146,"2642","Республика Татарстан","30847450","ООО \"Спецтехника\"","1632016215","163201001",null,null,"VS"]
[147,"2642","Республика Татарстан","30946055","ООО \"ТИС\"","1646038804","164601001",null,null,"VS"]
[148,"2642","Республика Татарстан","26322549","ООО \"Теплосервис\"","1604005405","160401001",null,null,"VS"]
[149,"2642","Республика Татарстан","26407393","ООО \"Теплосервис\"","1647013601","164701001",null,null,"VS"]
[150,"2642","Республика Татарстан","28266282","ООО \"Теплоснабсервис\"","1655256968","165501001",null,null,"VS"]
[151,"2642","Республика Татарстан","26511105","ООО \"Теплострой\"","1633606560","163301001",null,null,"VS"]
[152,"2642","Республика Татарстан","28267895","ООО \"Терсинские коммунальные сети\"","1601002011","160101001","18-07-2013 00:00:00",null,"VS"]
[153,"2642","Республика Татарстан","28136218","ООО \"ТрастИнвестСтрой\"","1657054660","161901001",null,null,"VS"]
[154,"2642","Республика Татарстан","28823340","ООО \"Тукаевский водоканал\"","1639046811","163901001",null,null,"VS"]
[155,"2642","Республика Татарстан","30855382","ООО \"УК \"Загородный клуб\"","1656069819","165601001",null,null,"VS"]
[156,"2642","Республика Татарстан","28828635","ООО \"УК \"Осиново\"","1648031152","164801001",null,null,"VS"]
[157,"2642","Республика Татарстан","27898303","ООО \"УПТЖ для ППД\"","1644066080","164401001",null,null,"VS"]
[158,"2642","Республика Татарстан","27686388","ООО \"Управление\"","1612005455","161201001",null,null,"VS"]
[159,"2642","Республика Татарстан","28794665","ООО \"Управляющая компания \"Нефтяник\"","1645029349","164501001",null,null,"VS"]
[160,"2642","Республика Татарстан","26405899","ООО \"Управляющая компания \"Ореховка\"","1657075332","165701001",null,null,"VS"]
[161,"2642","Республика Татарстан","26405854","ООО \"Управляющая компания жилищно-коммунального хозяйства\"","1632010870","163201001",null,null,"VS"]
[162,"2642","Республика Татарстан","27829636","ООО \"Уруссу-Водоканал\"","1642005741","164201001",null,null,"VS"]
[163,"2642","Республика Татарстан","26491020","ООО \"Фирма \"Никос  и Мария\"","1655031523","166001001",null,null,"VS"]
[164,"2642","Республика Татарстан","28798446","ООО \"ЦВК\"","1624447095","162401001",null,null,"VS"]
[165,"2642","Республика Татарстан","27761259","ООО \"Центр обслуживания поселений\"","1626013174","162601001","03-05-2012 00:00:00",null,"VS"]
[166,"2642","Республика Татарстан","26406006","ООО \"Ципьинское МПП ЖКХ\"","1612006787","161201001",null,null,"VS"]
[167,"2642","Республика Татарстан","28857397","ООО \"Челныводоканал\"","1650297657","165001001","01-12-2014 00:00:00",null,"VS"]
[168,"2642","Республика Татарстан","27836210","ООО \"Чистопольское сельское жилищно-коммунальное хозяйство\"","1652020019","165201001","03-08-2012 00:00:00",null,"VS"]
[169,"2642","Республика Татарстан","26402599","ООО \"Шанс\"","1644041921","164401001",null,null,"VS"]
[170,"2642","Республика Татарстан","26405734","ООО \"Шереметьевский ЖилСтройСервис\"","1651045420","165101001",null,null,"VS"]
[171,"2642","Республика Татарстан","30798857","ООО \"Энергоресурс\"","1660252694","166001001",null,null,"VS"]
[172,"2642","Республика Татарстан","26383226","ООО «Газпром трансгаз Казань»","1600000036","168150001",null,null,"VS"]
[173,"2642","Республика Татарстан","26354427","ООО ПКФ \"Восток-Энерго\"","1652007515","165201001",null,null,"VS"]
[174,"2642","Республика Татарстан","28141600","ООО ПО \"Коммунсервис-Актаныш\"","1604009537","160401001",null,null,"VS"]
[175,"2642","Республика Татарстан","27664844","ПАО \"Казаньоргсинтез\"","1658008723","997550001",null,null,"VS"]
[176,"2642","Республика Татарстан","26322515","ПАО \"Нижнекамскнефтехим\"","1651000010","997350001",null,null,"VS"]
[177,"2642","Республика Татарстан","28507852","ПАО \"Татнефть\" им.В.Д.Шашина\"","1644003838","164631002",null,null,"VS"]
[178,"2642","Республика Татарстан","28096875","Птицефабрика \"Яратель\" филиал ООО \"Птицеводческий комплекс \"Ак барс\"","1648022038","162443001","21-02-2013 00:00:00",null,"VS"]
[179,"2642","Республика Татарстан","27958444","Раифское СУВУ","1620001863","164801001",null,null,"VS"]
[180,"2642","Республика Татарстан","26405869","ТСЖ \"Нефтебаза\"","1639025113","163901001",null,null,"VS"]
[181,"2642","Республика Татарстан","28262238","ТСЖ \"Новая Тура\"","1648036496","164801001",null,null,"VS"]
[182,"2642","Республика Татарстан","26453514","ТСЖ \"Тихоново-сервис\"","1627006483","162701001",null,null,"VS"]
[183,"2642","Республика Татарстан","26354352","Учреждение профсоюзов санаторий \"Шифалы Су - Ижминводы\"","1627000509","162701001",null,null,"VS"]
[184,"2642","Республика Татарстан","26354436","ФГАОУ ВО \"Казанский (Приволжский) федеральный университет\"","1655018018","165401001",null,null,"VS"]
[185,"2642","Республика Татарстан","30903763","ФГБУ \"ЦЖКУ\" МИНОБОРОНЫ РОССИИ","7729314745","770101001",null,null,"VS"]
[186,"2642","Республика Татарстан","26354459","ФКП \"Казанский государственный казенный пороховой завод\"","1656025681","165601001",null,null,"VS"]
[187,"2642","Республика Татарстан","28272815","Филиал \"Спасский\" ОАО \"УКС\"","1655229717","163743001",null,null,"VS"]
[188,"2642","Республика Татарстан","30942042","Филиал АО \"Аммоний\" - потребители Менделеевского района","1627005779","162701000",null,null,"VS"]
[189,"2642","Республика Татарстан","30942052","Филиал АО \"Аммоний\" - прочие потребители","1627005779","162701002",null,null,"VS"]
[190,"2642","Республика Татарстан","27539502","Филиал ЗАО \"Пивоварня Москва-Эфес\" в г.Казань","7726260234","165902001","28-04-2012 00:00:00",null,"VS"]
[191,"2642","Республика Татарстан","30942124","Филиал МУП \"Управление ЖКХ Менделеевского муниципального района\" - Мунайкинское СП","1627009678","162701000",null,null,"VS"]
[192,"2642","Республика Татарстан","30942206","Филиал ОАО \"Алексеевскводоканал\" - сельские поселения","1605004556","160501000",null,null,"VS"]
[193,"2642","Республика Татарстан","30942346","Филиал ООО \"Айзат\" - Багряж-Никольское СП","1644046574","164401000",null,null,"VS"]
[194,"2642","Республика Татарстан","30942364","Филиал ООО \"Айзат\" - Борискинское СП","1644046574","164401002",null,null,"VS"]
[195,"2642","Республика Татарстан","30942374","Филиал ООО \"Айзат\" - Елховское СП","1644046574","164401003",null,null,"VS"]
[196,"2642","Республика Татарстан","30942389","Филиал ООО \"Айзат\" - Клементейкинское СП","1644046574","164401004",null,null,"VS"]
[197,"2642","Республика Татарстан","30942399","Филиал ООО \"Айзат\" - Нижнеабдулловское СП","1644046574","164401005",null,null,"VS"]
[198,"2642","Республика Татарстан","30942409","Филиал ООО \"Айзат\" - Сиренькинское СП","1644046574","164401006",null,null,"VS"]
[199,"2642","Республика Татарстан","30942421","Филиал ООО \"ЖКПСП \"Инфосервис\" - Ерсубайкинское СП","1644037957","164401000",null,null,"VS"]
[200,"2642","Республика Татарстан","30942101","Филиал ООО \"Менделеевсказот\" - потребители Менделеевского района","1627005000","168150000",null,null,"VS"]
[201,"2642","Республика Татарстан","30942111","Филиал ООО \"Менделеевсказот\" - прочие потребители","1627005000","168150002",null,null,"VS"]
[202,"2642","Республика Татарстан","30942441","Филиал ООО \"РАИС\" - Кузайкинское СП","1644050980","164401002",null,null,"VS"]
[203,"2642","Республика Татарстан","30942431","Филиал ООО \"РАИС\" - Маметьевское СП","1644050980","164401000",null,null,"VS"]
[204,"2642","Республика Татарстан","30942003","Филиал ООО \"УПТЖ для ППД\" - Бугульминский муниципальный район","1644066080","164401002",null,null,"VS"]
[205,"2642","Республика Татарстан","30941993","Филиал ООО \"УПТЖ для ППД\" - Заинский муниципальный район","1644066080","164401000",null,null,"VS"]
[206,"2642","Республика Татарстан","30942032","Филиал ПАО \"Казаньоргсинтез\" - база отдыха Шеланга Верхнеуслонского МР","1658008723","997350000",null,null,"VS"]
[207,"2642","Республика Татарстан","30914574","Филиал ФГБУ \"ЦЖКУ\" МИНОБОРОНЫ РОССИИ (по ЦВО)","7729314745","667043001",null,null,"VS"]
[208,"2642","Республика Татарстан","26467064","Челнинский филиал ООО \"Татнефть-АЗС Центр\"","1644040195","163943001",null,null,"VS"]

{"sheet":"modClassifierValidate","index":36,"n_rows":0,"n_cols":0,"rows_kept":0,"cut":false,"hidden":true,"merged":[]}

{"sheet":"modHyp","index":37,"n_rows":0,"n_cols":0,"rows_kept":0,"cut":false,"hidden":true,"merged":[]}

{"sheet":"modfrmDateChoose","index":38,"n_rows":0,"n_cols":0,"rows_kept":0,"cut":false,"hidden":true,"merged":[]}

{"sheet":"modComm","index":39,"n_rows":0,"n_cols":0,"rows_kept":0,"cut":false,"hidden":true,"merged":[]}

{"sheet":"modThisWorkbook","index":40,"n_rows":0,"n_cols":0,"rows_kept":0,"cut":false,"hidden":true,"merged":[]}

{"sheet":"REESTR_MO","index":41,"n_rows":2,"n_cols":4,"rows_kept":2,"cut":false,"hidden":true,"merged":[]}
["№","МР","МО","МО_ОКТМО"]
[1,"Чистопольский муниципальный район","Город Чистополь","92659101"]

{"sheet":"modfrmReestrMR","index":42,"n_rows":0,"n_cols":0,"rows_kept":0,"cut":false,"hidden":true,"merged":[]}

{"sheet":"modServiceModule","index":43,"n_rows":0,"n_cols":0,"rows_kept":0,"cut":false,"hidden":true,"merged":[]}

{"sheet":"modfrmCheckUpdates","index":44,"n_rows":0,"n_cols":0,"rows_kept":0,"cut":false,"hidden":true,"merged":[]}

{"sheet":"REESTR_DS","index":45,"n_rows":5,"n_cols":2,"rows_kept":5,"cut":false,"hidden":true,"merged":[]}
[]
[]
[null,"Чистопольский муниципальный район, Город Чистополь (92659101);"]
[null,"описание 2"]
[null,"Добавить "]

{"sheet":"REESTR_CHS","index":46,"n_rows":0,"n_cols":0,"rows_kept":0,"cut":false,"hidden":true,"merged":[]}

{"sheet":"REESTR_LINK","index":47,"n_rows":2,"n_cols":3,"rows_kept":2,"cut":false,"hidden":true,"merged":[]}
["ID","LINK_NAME","REGION"]
[64275710,"https://tariff.eias.ru/disclo/get_file?p_guid=????????-????-????-????-????????????","ALL"]